bitfinex-derivatives/quotes_SOLF0:USTF0_20250409
["timestamp","ask_amount","ask_price","bid_price","bid_amount"]
[1744209852082,9.3866,106.62,106.6,0.06786011]
[1744209852378,0.06507438,106.63,106.6,0.06786011]
[1744209852584,9.3872,106.61,106.6,0.06786011]
[1744209852781,95.42310446,106.62,106.53,368.3426]
[1744209852966,39.50310446,106.59,106.53,18.7364]
[1744209853172,9.3908,106.57,106.53,9.3426]
[1744209853387,39.50310446,106.59,106.53,9.3426]
[1744209853582,9.394,106.54,106.5,4.5262]
[1744209853787,39.50310446,106.55,106.47,8.9649]
[1744209853983,0.06032952,106.53,106.51,0.06881173]
[1744209854169,39.56343398,106.53,106.45,102.00649887]
[1744209854376,39.50310446,106.5,106.45,111.40719887]
[1744209854574,39.50310446,106.52,106.45,111.40719887]
[1744209854870,48.90070446,106.5,106.45,102.00649887]
[1744209855585,0.06421428,106.49,106.46,0.07142888]
[1744209856476,95.42310446,106.54,106.46,0.07142888]
[1744209856674,104.81700446,106.54,106.45,157.92649887]
[1744209856873,104.81700446,106.54,106.46,39.50310446]
[1744209856874,55.92,106.54,106.46,39.50310446]
[1744209857178,55.92,106.54,106.5,9.3966]
[1744209857486,39.50310446,106.56,106.5,9.3966]
[1744209857687,0.05945612,106.53,106.51,0.06629827]
[1744209858885,0.05945612,106.53,106.51,9.46199827]
[1744209859085,0.05945612,106.53,106.51,0.06629827]
[1744209859481,9.3952,106.52,106.51,0.06629827]
[1744209859873,55.99945612,106.53,106.45,55.92]
[1744209860079,9.3968,106.51,106.47,9.3992]
[1744209860385,55.94,106.53,106.45,55.92]
[1744209860880,9.3958,106.52,106.48,9.3983]
[1744209861085,0.06801865,106.5,106.48,0.05959228]
[1744209861386,0.06801865,106.5,106.48,9.45789228]
[1744209861583,0.06801865,106.5,106.48,0.05959228]
[1744209861981,0.06801865,106.5,106.48,9.45779228]
[1744209862185,0.06801865,106.5,106.48,0.05959228]
[1744209862577,9.46511865,106.5,106.48,0.05959228]
[1744209863582,0.06801865,106.5,106.48,0.05959228]
[1744209863782,39.50310446,106.55,106.48,0.05959228]
[1744209863989,39.50310446,106.55,106.46,39.50310446]
[1744209864683,9.3933,106.55,106.46,39.50310446]
[1744209865087,0.06852814,106.52,106.49,0.07161723]
[1744209865488,4.6251,106.58,106.5,55.96]
[1744209865684,4.6251,106.58,106.51,8.9946]
[1744209865990,9.3919,106.56,106.53,9.3937]
[1744209866381,4.6251,106.58,106.53,9.3937]
[1744209866688,9.4526548,106.56,106.53,9.46148465]
[1744209867489,0.0606548,106.56,106.55,9.3925]
[1744209868484,9.4530548,106.56,106.53,0.06778465]
[1744209868687,0.0606548,106.56,106.53,0.06778465]
[1744209869192,9.4527548,106.56,106.53,0.06778465]
[1744209869388,0.0606548,106.56,106.53,0.06778465]
[1744209869582,0.0606548,106.56,106.55,9.3925]
[1744209869790,4.6676,106.61,106.53,0.06778465]
[1744209870090,4.6676,106.61,106.52,39.50310446]
[1744209870392,39.50310446,106.62,106.52,39.50310446]
[1744209870599,39.50310446,106.62,106.53,4.5103]
[1744209870781,39.50310446,106.62,106.55,9.3922]
[1744209871086,0.06950666,106.59,106.56,0.06534864]
[1744209871284,0.06950666,106.59,106.57,9.3904]
[1744209871484,0.06950666,106.59,106.56,0.06403428]
[1744209871883,9.3899,106.58,106.56,0.06403428]
[1744209872090,0.06950666,106.59,106.56,0.06403428]
[1744209872291,39.50310446,106.58,106.56,0.06403428]
[1744209872484,55.94,106.57,106.56,0.06403428]
[1744209872801,0.06950666,106.59,106.56,0.06403428]
[1744209873278,9.3869,106.62,106.56,0.06403428]
[1744209873478,55.94,106.63,106.54,95.44310446]
[1744209873681,9.3873,106.61,106.57,9.3904]
[1744209873881,55.94,106.63,106.54,454.44310446]
[1744209874186,9.3883,106.6,106.54,454.44310446]
[1744209874388,55.94,106.63,106.56,0.0662221]
[1744209874589,55.94,106.63,106.54,454.44310446]
[1744209874785,55.94,106.63,106.58,0.06456765]
[1744209875287,9.3867,106.62,106.58,9.45376765]
[1744209875793,9.3874,106.61,106.58,9.45376765]
[1744209875992,55.94,106.63,106.58,0.06456765]
[1744209875993,39.50310446,106.6,106.58,0.06456765]
[1744209876688,39.50310446,106.62,106.58,0.06456765]
[1744209876989,9.3869,106.62,106.58,0.06456765]
[1744209877195,55.94,106.63,106.58,0.06456765]
[1744209877594,9.3867,106.62,106.59,9.3887]
[1744209877792,9.3867,106.62,106.58,0.06456765]
[1744209877990,9.3867,106.62,106.59,9.3886]
[1744209878186,65.3259,106.63,106.58,0.06456765]
[1744209878387,55.94,106.63,106.58,0.06456765]
[1744209878586,9.386,106.63,106.58,0.06456765]
[1744209878900,39.50310446,106.65,106.58,0.06456765]
[1744209879085,39.50310446,106.65,106.57,4.5543]
[1744209879281,9.387,106.62,106.6,0.06882338]
[1744209879481,39.50310446,106.67,106.6,0.06882338]
[1744209879685,39.50310446,106.65,106.57,4.5543]
[1744209879898,39.50310446,106.61,106.57,4.5543]
[1744209880094,39.50310446,106.63,106.6,0.06510644]
[1744209880299,55.76,106.64,106.6,0.06510644]
[1744209881592,55.76,106.64,106.6,9.45270644]
[1744209881799,55.76,106.64,106.6,0.06510644]
[1744209881996,39.50310446,106.63,106.6,0.06510644]
[1744209882295,55.76,106.64,106.6,0.06510644]
[1744209882491,39.50310446,106.63,106.6,0.06510644]
[1744209882690,48.89030446,106.61,106.6,0.06510644]
[1744209883603,88.38620892,106.61,106.51,685.0]
[1744209883791,39.50310446,106.57,106.51,359.0]
[1744209883989,9.3923,106.56,106.52,9.3947]
[1744209884701,9.4575174,106.55,106.53,0.06248417]
[1744209884997,0.0649174,106.55,106.53,0.06248417]
[1744209885899,9.4578174,106.55,106.53,0.06248417]
[1744209886499,0.0649174,106.55,106.53,0.06248417]
[1744209887500,9.4578174,106.55,106.53,0.06248417]
[1744209887699,0.0649174,106.55,106.53,0.06248417]
[1744209888003,9.4578174,106.55,106.53,0.06248417]
[1744209888500,0.0649174,106.55,106.53,0.06248417]
[1744209888704,9.3934,106.54,106.53,0.06248417]
[1744209889708,39.56802186,106.55,106.47,55.76]
[1744209889894,39.50310446,106.55,106.47,55.76]
[1744209890297,48.89610446,106.55,106.51,9.3955]
[1744209890701,39.50310446,106.55,106.47,55.76]
[1744209890908,9.45980051,106.54,106.52,0.06586704]
[1744209893102,9.3943,106.53,106.52,0.06586704]
[1744209893905,24.45652701,106.54,106.46,359.0]
[1744209894210,24.3905265,106.52,106.45,4.7012]
[1744209894408,9.3966,106.51,106.47,9.3991]
[1744209894802,24.3905265,106.54,106.45,60.4812]
[1744209895104,0.07046532,106.5,106.48,0.07141198]
[1744209895299,24.3905265,106.56,106.48,0.07141198]
[1744209895609,24.3905265,106.56,106.51,9.3956]
[1744209895908,9.393,106.55,106.51,9.3956]
[1744209896109,24.3905265,106.56,106.46,24.3905265]
[1744209896413,0.06223665,106.52,106.5,0.06712368]
[1744209896605,0.06223665,106.52,106.51,9.3953]
[1744209896805,0.06223665,106.52,106.5,0.06712368]
[1744209897312,0.06223665,106.52,106.5,9.46362368]
[1744209898011,0.06223665,106.52,106.51,9.3961]
[1744209898402,0.06223665,106.52,106.5,0.06712368]
[1744209898707,0.06223665,106.52,106.5,9.46342368]
[1744209899712,0.06223665,106.52,106.5,0.06712368]
[1744209900306,55.78,106.58,106.5,0.06712368]
[1744209900511,80.1705265,106.58,106.5,9.2637]
[1744209900819,29.1099265,106.6,106.5,33.6542265]
[1744209901310,80.1705265,106.64,106.54,24.3905265]
[1744209901509,80.1705265,106.64,106.55,4.5391]
[1744209901914,80.1705265,106.64,106.56,4.4897]
[1744209902215,24.3905265,106.58,106.48,80.1705265]
[1744209902510,24.3905265,106.56,106.49,9.0288]
[1744209902703,4.3793,106.57,106.52,0.05978142]
[1744209902903,24.3905265,106.6,106.52,0.05978142]
[1744209903116,9.3903,106.58,106.5,24.3905265]
[1744209903414,24.3905265,106.6,106.56,9.3913]
[1744209903611,55.78,106.61,106.55,0.06202656]
[1744209903803,24.3905265,106.62,106.55,359.06202656]
[1744209904116,24.3905265,106.6,106.54,4.5391]
[1744209904318,55.78,106.59,106.57,0.07066244]
[1744209904807,24.3905265,106.58,106.48,55.78]
[1744209905005,24.3905265,106.58,106.55,9.3924]
[1744209905207,55.78,106.63,106.52,80.1705265]
[1744209905505,55.78,106.63,106.52,439.1705265]
[1744209905703,24.3905265,106.61,106.55,9.3919]
[1744209905904,9.44959033,106.59,106.56,0.06621768]
[1744209906498,0.06009033,106.59,106.56,0.06621768]
[1744209906902,0.06009033,106.59,106.57,9.3903]
[1744209907916,55.78,106.63,106.56,0.06621768]
[1744209908113,65.1661,106.63,106.53,383.3905265]
[1744209908316,745.77546886,106.64,106.55,24.3905265]
[1744209908317,1.87546886,106.64,106.55,24.3905265]
[1744209908512,1.87546886,106.64,106.57,24.3905265]
[1744209908917,1.87546886,106.64,106.63,9.3855]
[1744209909119,9.132e-05,106.62,106.6,79.9905265]
[1744209909307,799.32,106.7,106.61,4.6655]
[1744209909503,55.6,106.7,106.61,363.6655]
[1744209909718,55.6,106.7,106.62,24.3905265]
[1744209909919,55.6,106.7,106.61,363.6655]
[1744209910118,55.6,106.7,106.64,9.3846]
[1744209910308,55.6,106.7,106.64,0.06903508]
[1744209910506,24.3905265,106.71,106.64,0.06903508]
[1744209910719,9.3781,106.72,106.61,363.6655]
[1744209910919,4.5179,106.74,106.66,0.06668166]
[1744209911122,4.5179,106.74,106.66,55.64668166]
[1744209911421,24.3905265,106.71,106.69,0.06120575]
[1744209911620,24.3905265,106.73,106.69,0.06120575]
[1744209912015,9.3793,106.7,106.69,0.06120575]
[1744209913230,9.38,106.7,106.62,4.5685]
[1744209913410,24.3905265,106.69,106.62,4.5685]
[1744209913609,9.3809,106.69,106.62,4.5685]
[1744209913914,24.3905265,106.71,106.62,4.5685]
[1744209914315,0.06129708,106.68,106.65,0.06691403]
[1744209914518,4.5179,106.74,106.65,79.9505265]
[1744209914718,9.3767,106.73,106.68,9.3804]
[1744209914924,4.5179,106.74,106.65,438.9505265]
[1744209915118,24.3905265,106.71,106.65,359.0]
[1744209915319,9.3806,106.69,106.65,368.3834]
[1744209915520,79.9505265,106.71,106.63,4.6074]
[1744209915829,24.3905265,106.69,106.66,0.07121062]
[1744209916930,9.382,106.67,106.66,0.07121062]
[1744209917430,24.3905265,106.67,106.62,4.5685]
[1744209917829,79.9505265,106.67,106.62,4.5685]
[1744209918030,9.3851,106.64,106.62,4.5685]
[1744209918428,79.9505265,106.67,106.62,4.5685]
[1744209918629,0.06664597,106.64,106.62,4.62915789]
[1744209919027,79.9505265,106.7,106.62,4.62915789]
[1744209919332,79.9505265,106.7,106.62,4.5685]
[1744209919643,9.3825,106.67,106.62,4.5685]
[1744209919827,79.9505265,106.7,106.62,4.5685]
[1744209920137,79.9505265,106.7,106.65,0.06588735]
[1744209921333,9.3825,106.67,106.65,0.06588735]
[1744209923035,79.9505265,106.7,106.65,0.06588735]
[1744209923727,9.382,106.67,106.65,0.06588735]
[1744209923928,79.9505265,106.7,106.65,0.06588735]
[1744209924136,24.3905265,106.68,106.65,0.06588735]
[1744209924432,55.56,106.7,106.65,0.06588735]
[1744209924433,24.3905265,106.66,106.65,0.06588735]
[1744209924626,4.6681,106.69,106.65,0.06588735]
[1744209924627,24.3905265,106.68,106.65,0.06588735]
[1744209924820,4.6681,106.69,106.65,0.06588735]
[1744209925028,79.9505265,106.7,106.65,0.06588735]
[1744209925330,9.3807,106.69,106.65,9.44928735]
[1744209926038,79.9505265,106.7,106.65,0.06588735]
[1744209927038,24.3905265,106.7,106.65,0.06588735]
[1744209927335,30.1874265,106.72,106.66,9.3825]
[1744209927536,9.3797,106.7,106.66,9.3825]
[1744209927735,9.3797,106.7,106.68,0.07196376]
[1744209928234,29.0586265,106.72,106.68,0.07196376]
[1744209928442,24.3905265,106.72,106.68,0.07196376]
[1744209928939,24.3905265,106.74,106.68,0.07196376]
[1744209929132,79.9305265,106.74,106.66,55.54]
[1744209929333,79.9305265,106.74,106.7,0.06580421]
[1744209929535,64.9163,106.74,106.7,9.44470421]
[1744209929734,769.10180199,106.8,106.7,0.06580421]
[1744209929931,24.3905265,106.8,106.71,24.3905265]
[1744209930128,24.3905265,106.8,106.74,0.0604311]
[1744209930129,9.3719,106.79,106.74,0.0604311]
[1744209930540,33.7615265,106.8,106.74,0.0604311]
[1744209930955,59.9316,106.81,106.74,0.0604311]
[1744209931136,4.3916,106.81,106.74,0.0604311]
[1744209931440,79.9305265,106.84,106.76,0.06553162]
[1744209931943,24.3905265,106.82,106.74,414.54]
[1744209932243,33.7610265,106.8,106.79,0.05964761]
[1744209932739,33.7613265,106.8,106.74,414.54]
[1744209932945,24.3905265,106.82,106.74,414.54]
[1744209933146,24.3905265,106.8,106.74,414.54]
[1744209933838,0.06024424,106.78,106.76,0.06348845]
[1744209934139,79.9305265,106.84,106.76,0.06348845]
[1744209934336,33.7580265,106.84,106.77,9.3732]
[1744209934537,24.3905265,106.84,106.78,9.167]
[1744209934841,9.3707,106.8,106.74,423.9154]
[1744209935040,24.3905265,106.81,106.75,4.3632]
[1744209935242,55.52,106.83,106.75,4.3632]
[1744209935440,9.3657,106.86,106.8,9.3699]
[1744209935749,24.3905265,106.88,106.81,8.8018]
[1744209935950,9.3662,106.85,106.82,0.06881002]
[1744209936338,9.3668,106.85,106.82,0.06881002]
[1744209936538,24.3905265,106.86,106.82,0.06881002]
[1744209936842,79.7305265,106.86,106.82,0.06881002]
[1744209937038,9.3679,106.83,106.82,0.06881002]
[1744209937234,79.7305265,106.86,106.82,0.06881002]
[1744209937440,9.3676,106.84,106.82,0.06881002]
[1744209937639,79.7305265,106.86,106.82,0.06881002]
[1744209937833,79.7305265,106.86,106.81,4.3632]
[1744209937834,24.3905265,106.84,106.78,9.2643]
[1744209938029,9.371,106.8,106.77,359.0]
[1744209938236,79.7105265,106.82,106.77,359.0]
[1744209938747,9.371,106.8,106.77,359.0]
[1744209939139,9.371,106.8,106.77,359.06816677]
[1744209939140,9.43200982,106.8,106.77,359.06816677]
[1744209939541,0.06100982,106.8,106.77,359.06816677]
[1744209939849,0.06100982,106.8,106.78,4.8257]
[1744209941437,24.45153632,106.8,106.77,0.06816677]
[1744209941638,9.3723,106.78,106.77,0.06816677]
[1744209942946,9.3716,106.79,106.77,0.06816677]
[1744209943152,0.06100982,106.8,106.77,0.06816677]
[1744209943351,24.45153632,106.8,106.77,0.06816677]
[1744209943552,0.06100982,106.8,106.77,0.06816677]
[1744209946651,9.3715,106.79,106.77,0.06816677]
[1744209946857,0.06100982,106.8,106.77,0.06816677]
[1744209948649,9.43200982,106.8,106.77,0.06816677]
[1744209949554,0.06100982,106.8,106.77,0.06816677]
[1744209950058,9.3718,106.79,106.77,0.06816677]
[1744209950562,9.3714,106.79,106.77,0.06816677]
[1744209951056,0.06100982,106.8,106.77,0.06816677]
[1744209951560,0.06100982,106.8,106.77,9.44106677]
[1744209951858,0.06100982,106.8,106.77,0.06816677]
[1744209953663,24.3905265,106.84,106.77,0.06816677]
[1744209953861,24.3905265,106.84,106.75,383.3905265]
[1744209954059,24.3905265,106.84,106.75,359.0]
[1744209954254,55.3,106.83,106.75,359.0]
[1744209954453,24.3905265,106.82,106.75,359.0]
[1744209954654,24.3905265,106.82,106.77,0.06978581]
[1744209955165,9.3719,106.79,106.77,0.06978581]
[1744209955555,29.1268265,106.82,106.77,0.06978581]
[1744209956164,9.372,106.79,106.77,0.06978581]
[1744209956558,29.1268265,106.82,106.77,0.06978581]
[1744209956764,56.4171,106.83,106.77,0.06978581]
[1744209956963,28.8855265,106.85,106.77,0.06978581]
[1744209957265,9.3693,106.82,106.78,9.3719]
[1744209957458,28.8855265,106.85,106.8,0.06058441]
[1744209957664,28.8855265,106.85,106.79,9.371]
[1744209957864,28.8855265,106.85,106.81,0.07112693]
[1744209958157,24.3905265,106.83,106.76,9.3737]
[1744209958360,9.3718,106.79,106.75,359.0]
[1744209958662,24.3905265,106.81,106.75,368.3748]
[1744209958860,9.3718,106.79,106.75,368.3748]
[1744209959063,55.3,106.82,106.75,359.0]
[1744209959453,0.0718182,106.8,106.77,0.0694439]
[1744209960366,0.0718182,106.8,106.78,9.3718]
[1744209960566,0.0718182,106.8,106.77,0.0694439]
[1744209961161,64.6665,106.85,106.77,0.0694439]
[1744209961368,9.3665,106.85,106.81,9.3695]
[1744209961568,24.3905265,106.87,106.78,60.0587]
[1744209961862,4.5197,106.89,106.81,24.3905265]
[1744209962068,24.3905265,106.91,106.82,55.3]
[1744209962264,9.3622,106.9,106.83,4.7587]
[1744209962457,24.3905265,106.91,106.85,0.06082811]
[1744209963061,24.3905265,106.91,106.85,9.42652811]
[1744209963258,55.3,106.92,106.85,0.06082811]
[1744209963466,55.3,106.92,106.84,4.6017]
[1744209963666,24.3905265,106.91,106.87,0.06037009]
[1744209964369,9.3635,106.88,106.87,0.06037009]
[1744209964573,24.3905265,106.91,106.87,0.06037009]
[1744209964753,9.3631,106.89,106.87,0.06037009]
[1744209964959,24.3905265,106.91,106.87,0.06037009]
[1744209965254,24.3905265,106.93,106.87,0.06037009]
[1744209965455,2.1038,106.95,106.87,0.06037009]
[1744209965456,26.4943265,106.95,106.87,0.06037009]
[1744209965665,24.3905265,106.95,106.86,438.6705265]
[1744209965861,24.3905265,106.95,106.9,0.05910527]
[1744209966070,24.3905265,106.93,106.9,0.05910527]
[1744209966462,9.3598,106.93,106.9,0.05910527]
[1744209966663,24.3905265,106.95,106.9,0.05910527]
[1744209966962,24.3905265,106.92,106.9,0.05910527]
[1744209967162,24.3905265,106.92,106.86,359.0]
[1744209967461,24.3905265,106.9,106.86,359.0]
[1744209967657,24.3905265,106.9,106.85,4.7233]
[1744209967857,79.4905265,106.9,106.85,4.7233]
[1744209968061,79.4905265,106.9,106.84,4.6017]
[1744209968062,24.3905265,106.86,106.8,359.0]
[1744209968362,24.3905265,106.81,106.79,524.46476544]
[1744209968577,79.4905265,106.81,106.79,189.28926825]
[1744209968775,9.3705,106.8,106.79,160.06279477]
[1744209968973,9.3705,106.8,106.79,31.43799117]
[1744209969281,9.3705,106.8,106.79,9.117e-05]
[1744209969878,33.7610265,106.8,106.79,9.117e-05]
[1744209970082,9.3705,106.8,106.79,9.117e-05]
[1744209972287,33.7610265,106.8,106.79,9.117e-05]
[1744209972587,24.3905265,106.8,106.71,64.6647]
[1744209972793,24.3905265,106.8,106.73,9.3762]
[1744209972972,24.3905265,106.8,106.71,69.0388]
[1744209973177,24.3905265,106.8,106.71,93.4293265]
[1744209973478,24.3905265,106.8,106.75,9.3749]
[1744209973786,0.06046073,106.77,106.75,9.3749]
[1744209973987,0.06046073,106.77,106.76,0.05987051]
[1744209974483,0.06046073,106.77,106.76,9.43397051]
[1744209974683,0.06046073,106.77,106.76,0.05987051]
[1744209974990,0.06046073,106.77,106.76,9.43397051]
[1744209976192,12.9903307,106.77,106.76,9.43397051]
[1744209976386,12.9903307,106.77,106.76,9.348276]
[1744209977490,214.73410024,106.79,106.76,9.36]
[1744209977491,175.90652327,106.79,106.76,9.36]
[1744209977791,175.90652327,106.79,106.77,24.3905265]
[1744209977985,175.90652327,106.79,106.78,9.3723]
[1744209978285,161.37172327,106.79,106.78,9.3723]
[1744209978493,181.05614673,106.8,106.79,9.3714]
[1744209978693,181.12669523,106.8,106.79,9.3714]
[1744209978993,181.12669523,106.8,106.77,379.31816303]
[1744209979381,181.12669523,106.8,106.79,9.3714]
[1744209980587,258.59739958,106.81,106.8,9.3705]
[1744209981083,14.173,106.86,106.79,79.5105265]
[1744209981287,4.8075,106.86,106.79,79.5105265]
[1744209981493,4.8075,106.86,106.79,55.12]
[1744209981693,0.06769215,106.84,106.81,0.06612007]
[1744209982293,9.3688,106.82,106.81,0.06612007]
[1744209983191,64.4884,106.83,106.81,0.06612007]
[1744209983398,55.12,106.83,106.76,4.3828]
[1744209983998,55.12,106.83,106.77,9.3728]
[1744209984192,24.3905265,106.82,106.73,79.5105265]
[1744209984494,0.06289623,106.79,106.76,0.06120611]
[1744209984698,64.4924,106.78,106.74,9.3754]
[1744209984994,4.76209623,106.79,106.76,0.06193813]
[1744209985197,4.4309,106.81,106.7,59.4921]
[1744209985386,0.06568984,106.79,106.76,0.06816228]
[1744209985583,0.06568984,106.79,106.77,9.3732]
[1744209985786,0.06568984,106.79,106.76,0.06816228]
[1744209986299,0.06568984,106.79,106.78,9.3723]
[1744209986796,8.984e-05,106.79,106.78,9.3723]
[1744209987095,4.5747,106.86,106.78,64.48]
[1744209987394,4.5747,106.86,106.79,24.3905265]
[1744209987598,4.5747,106.86,106.84,9.3666]
[1744209987800,59.8049,106.88,106.79,24.3905265]
[1744209987987,59.8049,106.88,106.83,9.3674]
[1744209988185,0.06667937,106.85,106.82,0.06271501]
[1744209988384,0.06667937,106.85,106.79,388.0482265]
[1744209988585,0.06667937,106.85,106.82,0.061086]
[1744209989002,24.45720587,106.85,106.82,0.061086]
[1744209989397,0.06667937,106.85,106.82,0.061086]
[1744209990295,9.3685,106.83,106.79,359.0]
[1744209991500,0.06252394,106.82,106.8,0.06459275]
[1744209991901,0.06252394,106.82,106.8,9.43489275]
[1744209992103,0.06252394,106.82,106.8,0.06459275]
[1744209992999,0.06252394,106.82,106.8,9.43489275]
[1744209993399,0.06252394,106.82,106.8,0.06459275]
[1744209993599,2.394e-05,106.82,106.81,9.3697]
[1744209994002,2.394e-05,106.82,106.8,9.43499275]
[1744209994200,2.394e-05,106.82,106.8,0.06459275]
[1744209994599,39.42190425,106.82,106.75,4.6577]
[1744209994795,55.12,106.81,106.73,44.22948031]
[1744209994999,64.4905,106.81,106.73,44.22948031]
[1744209995309,55.12,106.81,106.76,9.3737]
[1744209995510,55.12,106.81,106.73,44.22948031]
[1744209995702,55.12,106.81,106.77,9.3728]
[1744209995901,0.05899441,106.78,106.77,9.3728]
[1744209996501,0.05899441,106.78,106.76,9.43438237]
[1744209996702,0.05899441,106.78,106.76,0.06078237]
[1744209997911,9.43189441,106.78,106.76,0.06078237]
[1744209998209,0.05899441,106.78,106.76,0.06078237]
[1744209999405,9.3732,106.77,106.76,0.06078237]
[1744209999705,54.94,106.77,106.68,4.5099]
[1744209999904,44.15248031,106.76,106.67,4.5254]
[1744210000203,39.42188031,106.74,106.67,4.5254]
[1744210000402,9.3779,106.72,106.68,9.3803]
[1744210000606,39.42188031,106.74,106.68,9.3803]
[1744210000807,0.06924281,106.71,106.7,9.3788]
[1744210001112,44.15248031,106.76,106.7,9.3788]
[1744210001309,0.06945601,106.72,106.7,9.3788]
[1744210001499,0.06945601,106.72,106.71,9.3785]
[1744210001902,0.06945601,106.72,106.7,9.44896965]
[1744210002218,0.06945601,106.72,106.7,0.07006965]
[1744210003218,0.06945601,106.72,106.71,9.3785]
[1744210003508,0.06945601,106.72,106.7,0.07006965]
[1744210003814,0.06945601,106.72,106.7,9.44896965]
[1744210004519,0.06945601,106.72,106.7,0.07006965]
[1744210006117,94.38188031,106.76,106.7,0.07006965]
[1744210006412,94.38188031,106.76,106.7,9.3788]
[1744210006716,9.3762,106.74,106.7,9.3788]
[1744210007109,0.06042291,106.73,106.71,0.07183676]
[1744210009416,9.43732291,106.73,106.71,0.07183676]
[1744210009722,0.06042291,106.73,106.71,0.07183676]
[1744210010014,4.62132291,106.73,106.71,0.07183676]
[1744210010217,9.3776,106.72,106.71,0.07183676]
[1744210010715,4.62132291,106.73,106.71,0.07183676]
[1744210011216,4.62132291,106.73,106.66,54.96]
[1744210011419,4.5609,106.73,106.66,54.96]
[1744210011916,9.0045,106.74,106.66,54.96]
[1744210012118,0.05952431,106.71,106.7,9.3786]
[1744210013013,4.5651,106.77,106.7,9.38]
[1744210013216,4.5651,106.77,106.7,28.70536349]
[1744210013412,4.5651,106.77,106.7,4.3978]
[1744210013719,13.9386,106.77,106.73,9.3762]
[1744210014314,0.06101465,106.76,106.74,0.05915497]
[1744210015019,0.06101465,106.76,106.75,9.3749]
[1744210017716,0.06101465,106.76,106.74,0.05915497]
[1744210018220,0.06101465,106.76,106.74,9.43435497]
[1744210018525,54.96,106.75,106.7,4.3978]
[1744210018820,54.96,106.75,106.67,54.96]
[1744210018821,24.30756349,106.74,106.66,9.2035]
[1744210019120,24.30756349,106.7,106.61,18.7729]
[1744210019324,24.30756349,106.7,106.66,9.3825]
[1744210019325,33.68726349,106.7,106.66,9.3825]
[1744210019526,24.30756349,106.7,106.66,9.3825]
[1744210019715,0.06444515,106.69,106.61,4.5219]
[1744210019922,24.30756349,106.68,106.61,4.5219]
[1744210020434,33.68926349,106.68,106.63,9.3854]
[1744210020620,4.5272,106.69,106.61,4.5219]
[1744210020926,4.5272,106.69,106.65,9.3831]
[1744210021116,0.07030297,106.66,106.65,9.3831]
[1744210021427,0.07030297,106.66,106.64,9.44723255]
[1744210022530,0.07030297,106.66,106.65,9.3837]
[1744210023535,4.8342,106.7,106.69,9.3802]
[1744210023733,83.96006349,106.74,106.64,0.06303255]
[1744210024033,9.3797,106.7,106.62,79.26756349]
[1744210024235,9.3797,106.7,106.66,9.3825]
[1744210024427,24.30756349,106.72,106.62,79.26756349]
[1744210024627,9.378,106.72,106.62,79.26756349]
[1744210024831,9.378,106.72,106.66,0.06798699]
[1744210025027,0.07029216,106.68,106.66,0.06798699]
[1744210025230,0.07029216,106.68,106.67,9.382]
[1744210026335,141.84054838,106.79,106.67,9.38]
[1744210026530,151.41554838,106.79,106.7,24.30756349]
[1744210026833,9.575,106.79,106.71,54.98]
[1744210027027,24.30756349,106.78,106.68,33.61146349]
[1744210027332,24.30756349,106.78,106.68,4.6028]
[1744210027333,9.3772,106.73,106.68,4.6028]
[1744210027537,9.3772,106.73,106.72,0.06813423]
[1744210027719,24.30756349,106.76,106.68,4.6028]
[1744210027921,0.06242813,106.74,106.71,0.06531436]
[1744210029629,0.06242813,106.74,106.71,24.37287785]
[1744210029937,9.575,106.79,106.71,24.37287785]
[1744210030237,9.575,106.79,106.71,24.30756349]
[1744210030622,9.575,106.79,106.76,9.3739]
[1744210031038,9.63467201,106.79,106.76,9.43401877]
[1744210031524,9.63467201,106.79,106.76,0.06011877]
[1744210031525,4.90417201,106.79,106.76,0.06011877]
[1744210032035,9.3723,106.78,106.73,54.78]
[1744210032245,79.08756349,106.78,106.7,54.78]
[1744210032432,4.6007,106.77,106.7,54.78]
[1744210032631,9.3746,106.76,106.72,9.377]
[1744210032834,24.30756349,106.76,106.69,4.7221]
[1744210033033,24.30756349,106.74,106.65,742.52]
[1744210033230,9.3768,106.73,106.71,0.06071881]
[1744210033426,9.3768,106.73,106.69,9.3798]
[1744210033741,9.43690809,106.73,106.71,0.06303301]
[1744210033932,88.46386349,106.74,106.65,742.52]
[1744210034240,4.755,106.75,106.72,9.3772]
[1744210034533,4.755,106.75,106.66,28.72606349]
[1744210035039,0.06007967,106.72,106.69,0.07007344]